[Event "Late-Titled-Tuesday-Blitz-February-06-2024"]
[Site "Chess.com"]
[Date "2024.02.06"]
[Round "6"]
[White "AlexeiShirov"]
[Black "Onthequiet"]
[Result "1-0"]
[WhiteElo "2795"]
[BlackElo "2470"]
[TimeControl "180+1"]
[EndTime "15:05:50 PST"]
[Termination "AlexeiShirov won on time"]

1. e4 {[%clk 0:03:00.9]} 1... c6 {[%clk 0:02:59.3]} 2. d4 {[%clk 0:03:00.1]}
2... d5 {[%clk 0:02:59.7]} 3. e5 {[%clk 0:03:00.3]} 3... Bf5 {[%clk 0:02:58.9]}
4. h4 {[%clk 0:02:57.6]} 4... h6 {[%clk 0:02:58.2]} 5. g4 {[%clk 0:02:54.8]}
5... Be4 {[%clk 0:02:58.1]} 6. f3 {[%clk 0:02:53.9]} 6... Bh7 {[%clk 0:02:58]}
7. e6 {[%clk 0:02:52]} 7... Nf6 {[%clk 0:02:56.3]} 8. Bd3 {[%clk 0:02:45.6]}
8... Bxd3 {[%clk 0:02:52.4]} 9. Qxd3 {[%clk 0:02:43.3]} 9... Qd6 {[%clk
0:02:52.8]} 10. exf7+ {[%clk 0:02:36.1]} 10... Kxf7 {[%clk 0:02:52]} 11. f4
{[%clk 0:02:34.9]} 11... Qe6+ {[%clk 0:02:15.6]} 12. Kf1 {[%clk 0:02:30.3]}
12... Qxg4 {[%clk 0:02:06.1]} 13. Nf3 {[%clk 0:02:28.8]} 13... Nbd7 {[%clk
0:02:01.4]} 14. Rg1 {[%clk 0:02:18.8]} 14... Qh5 {[%clk 0:01:44.9]} 15. Nc3
{[%clk 0:02:12.4]} 15... e6 {[%clk 0:01:42.7]} 16. Ne5+ {[%clk 0:02:06.2]} 16...
Ke8 {[%clk 0:01:21.9]} 17. Bd2 {[%clk 0:01:58.3]} 17... Bb4 {[%clk 0:00:37.3]}
18. Re1 {[%clk 0:01:22.2]} 18... Bxc3 {[%clk 0:00:36.2]} 19. Bxc3 {[%clk
0:01:21.6]} 19... Ne4 {[%clk 0:00:28.1]} 20. Nxd7 {[%clk 0:01:20.1]} 20... Kxd7
{[%clk 0:00:27.7]} 21. Rxg7+ {[%clk 0:01:19.6]} 21... Kc8 {[%clk 0:00:28.3]} 22.
Rxe4 {[%clk 0:01:00.2]} 22... dxe4 {[%clk 0:00:29.2]} 23. Qxe4 {[%clk
0:01:00.1]} 23... Qd5 {[%clk 0:00:22.6]} 24. Qxd5 {[%clk 0:00:56.4]} 24... exd5
{[%clk 0:00:21.6]} 25. Bb4 {[%clk 0:00:54.4]} 25... b6 {[%clk 0:00:14.3]} 26.
Bd6 {[%clk 0:00:49.8]} 26... Re8 {[%clk 0:00:11.5]} 27. f5 {[%clk 0:00:48.2]}
27... Rd8 {[%clk 0:00:06.8]} 28. Rc7+ {[%clk 0:00:43.5]} 28... Kb8 {[%clk
0:00:07.2]} 29. Be5 {[%clk 0:00:42.8]} 29... Re8 {[%clk 0:00:06.5]} 30. Re7+
{[%clk 0:00:40.8]} 1-0

[Event "Late-Titled-Tuesday-Blitz-February-06-2024"]
[Site "Chess.com"]
[Date "2024.02.06"]
[Round "6"]
[White "K_A_S_T_O_R"]
[Black "karinachess1"]
[Result "1/2-1/2"]
[WhiteElo "2877"]
[BlackElo "2671"]
[TimeControl "180+1"]
[EndTime "15:06:04 PST"]
[Termination "Game drawn by repetition"]

1. e4 {[%clk 0:03:00.9]} 1... e5 {[%clk 0:03:00]} 2. Nf3 {[%clk 0:03:01.1]} 2...
Nc6 {[%clk 0:03:00.5]} 3. Bb5 {[%clk 0:03:01.7]} 3... Nf6 {[%clk 0:02:59.4]} 4.
d3 {[%clk 0:03:01.1]} 4... d6 {[%clk 0:02:59.4]} 5. O-O {[%clk 0:03:00.4]} 5...
g6 {[%clk 0:02:59.9]} 6. c3 {[%clk 0:02:59.8]} 6... Bd7 {[%clk 0:02:59.7]} 7.
Re1 {[%clk 0:03:00.1]} 7... Bg7 {[%clk 0:03:00.1]} 8. Nbd2 {[%clk 0:02:56.5]}
8... O-O {[%clk 0:03:00.2]} 9. Ba4 {[%clk 0:02:57.1]} 9... Qe8 {[%clk
0:03:00.5]} 10. Bc2 {[%clk 0:02:56.2]} 10... Kh8 {[%clk 0:03:00.5]} 11. d4
{[%clk 0:02:55.8]} 11... Nh5 {[%clk 0:03:00.6]} 12. dxe5 {[%clk 0:02:55.3]}
12... dxe5 {[%clk 0:03:00.5]} 13. Nc4 {[%clk 0:02:55.3]} 13... Rd8 {[%clk
0:02:47.8]} 14. Qe2 {[%clk 0:02:54.2]} 14... b5 {[%clk 0:02:35.8]} 15. Na3
{[%clk 0:02:44.5]} 15... a6 {[%clk 0:02:33.5]} 16. g3 {[%clk 0:02:42.4]} 16...
Bg4 {[%clk 0:02:29.8]} 17. Kg2 {[%clk 0:02:42.5]} 17... Qd7 {[%clk 0:02:23.8]}
18. Rd1 {[%clk 0:02:38.5]} 18... Qc8 {[%clk 0:02:22.9]} 19. Rxd8 {[%clk
0:02:33]} 19... Nxd8 {[%clk 0:02:22.5]} 20. Qd3 {[%clk 0:02:28.6]} 20... Ne6
{[%clk 0:02:16.6]} 21. Ng1 {[%clk 0:02:13.9]} 21... Rd8 {[%clk 0:02:01.7]} 22.
Qf1 {[%clk 0:02:13.8]} 22... Nc5 {[%clk 0:00:54.7]} 23. Be3 {[%clk 0:02:10.5]}
23... Nb7 {[%clk 0:00:46.5]} 24. Bb3 {[%clk 0:02:04.4]} 24... Be6 {[%clk
0:00:43.4]} 25. Rd1 {[%clk 0:02:03.3]} 25... Nd6 {[%clk 0:00:35.3]} 26. f3
{[%clk 0:02:00.4]} 26... Bxb3 {[%clk 0:00:31.8]} 27. axb3 {[%clk 0:02:00.1]}
27... Qe6 {[%clk 0:00:31.9]} 28. b4 {[%clk 0:02:00.3]} 28... Rf8 {[%clk
0:00:30.9]} 29. Bc5 {[%clk 0:01:59.4]} 29... f5 {[%clk 0:00:20.9]} 30. Bxd6
{[%clk 0:01:59.2]} 30... cxd6 {[%clk 0:00:21]} 31. Qd3 {[%clk 0:01:59.4]} 31...
Rd8 {[%clk 0:00:21.3]} 32. Nh3 {[%clk 0:01:48.1]} 32... h6 {[%clk 0:00:20.7]}
33. Nf2 {[%clk 0:01:47.8]} 33... Nf6 {[%clk 0:00:20.9]} 34. Nc2 {[%clk
0:01:42.8]} 34... d5 {[%clk 0:00:21.1]} 35. exd5 {[%clk 0:01:39]} 35... Rxd5
{[%clk 0:00:21]} 36. Qe2 {[%clk 0:01:39.3]} 36... Rxd1 {[%clk 0:00:20.4]} 37.
Qxd1 {[%clk 0:01:39.2]} 37... Qd5 {[%clk 0:00:20]} 38. Qe2 {[%clk 0:01:37.5]}
38... Kh7 {[%clk 0:00:19.7]} 39. Ne3 {[%clk 0:01:37.3]} 39... Qc6 {[%clk
0:00:20.1]} 40. Nd3 {[%clk 0:01:36.6]} 40... e4 {[%clk 0:00:20.4]} 41. Ne5
{[%clk 0:01:37.1]} 41... Qe6 {[%clk 0:00:20.3]} 42. f4 {[%clk 0:01:32.7]} 42...
Nd5 {[%clk 0:00:20.5]} 43. Qd2 {[%clk 0:01:21.4]} 43... Nxe3+ {[%clk 0:00:20.3]}
44. Qxe3 {[%clk 0:01:22]} 44... Bxe5 {[%clk 0:00:20.8]} 45. fxe5 {[%clk
0:01:22.7]} 45... Qxe5 {[%clk 0:00:21.7]} 46. Qa7+ {[%clk 0:01:23]} 46... Qg7
{[%clk 0:00:18.3]} 47. Qxa6 {[%clk 0:01:22.9]} 47... Qd7 {[%clk 0:00:19]} 48.
Qf6 {[%clk 0:01:19.7]} 48... Qd2+ {[%clk 0:00:17.2]} 49. Kh3 {[%clk 0:01:20]}
49... e3 {[%clk 0:00:14.5]} 50. Qf7+ {[%clk 0:01:19.1]} 50... Kh8 {[%clk
0:00:15.1]} 51. Qf8+ {[%clk 0:01:11.4]} 51... Kh7 {[%clk 0:00:15.7]} 52. Qf7+
{[%clk 0:01:07.8]} 52... Kh8 {[%clk 0:00:16.1]} 53. Qf8+ {[%clk 0:01:08.5]}
53... Kh7 {[%clk 0:00:16.6]} 54. Qf7+ {[%clk 0:01:09.2]} 1/2-1/2

[Event "Late-Titled-Tuesday-Blitz-February-06-2024"]
[Site "Chess.com"]
[Date "2024.02.06"]
[Round "6"]
[White "trriinu"]
[Black "Bilan_Danila"]
[Result "0-1"]
[WhiteElo "2249"]
[BlackElo "2612"]
[TimeControl "180+1"]
[EndTime "15:06:04 PST"]
[Termination "Bilan_Danila won on time"]

1. e4 {[%clk 0:03:00.3]} 1... c6 {[%clk 0:02:58.7]} 2. Nc3 {[%clk 0:02:57.3]}
2... d5 {[%clk 0:02:59.6]} 3. Nf3 {[%clk 0:02:57.3]} 3... Nf6 {[%clk 0:02:58.2]}
4. e5 {[%clk 0:02:47.6]} 4... Ne4 {[%clk 0:02:57.2]} 5. d3 {[%clk 0:02:47.8]}
5... Nxc3 {[%clk 0:02:56.2]} 6. bxc3 {[%clk 0:02:48.7]} 6... Bg4 {[%clk
0:02:56.8]} 7. d4 {[%clk 0:02:48.9]} 7... e6 {[%clk 0:02:56.1]} 8. h3 {[%clk
0:02:49.2]} 8... Bh5 {[%clk 0:02:54.2]} 9. Bd3 {[%clk 0:02:47.2]} 9... Be7
{[%clk 0:02:49.9]} 10. O-O {[%clk 0:02:46.9]} 10... c5 {[%clk 0:02:47.2]} 11.
Bb5+ {[%clk 0:01:58.6]} 11... Nc6 {[%clk 0:02:45.3]} 12. c4 {[%clk 0:01:02.2]}
12... O-O {[%clk 0:02:35.9]} 13. cxd5 {[%clk 0:00:52.9]} 13... Nxd4 {[%clk
0:02:34.2]} 14. Be2 {[%clk 0:00:43.5]} 14... Nxe2+ {[%clk 0:02:25]} 15. Qxe2
{[%clk 0:00:44.4]} 15... Qxd5 {[%clk 0:02:24.8]} 16. g4 {[%clk 0:00:44.1]} 16...
Bg6 {[%clk 0:02:22.1]} 17. Bf4 {[%clk 0:00:28.7]} 17... Rfd8 {[%clk 0:02:10.6]}
18. Kh2 {[%clk 0:00:06.9]} 18... Qe4 {[%clk 0:02:00]} 19. Qxe4 {[%clk
0:00:02.2]} 19... Bxe4 {[%clk 0:02:00.9]} 20. Ne1 {[%clk 0:00:02]} 20... Rd5
{[%clk 0:01:50.3]} 21. c4 {[%clk 0:00:01.4]} 21... Rd4 {[%clk 0:01:45.9]} 22.
Rc1 {[%clk 0:00:02]} 22... Rad8 {[%clk 0:01:38.9]} 23. Be3 {[%clk 0:00:02.3]}
23... Rd1 {[%clk 0:01:35.5]} 24. Ng2 {[%clk 0:00:01.4]} 24... Rxf1 {[%clk
0:01:27.1]} 25. Rxf1 {[%clk 0:00:02.3]} 25... Rd3 {[%clk 0:01:20.7]} 26. Rc1
{[%clk 0:00:02.1]} 26... b6 {[%clk 0:01:16]} 27. Nf4 {[%clk 0:00:01.8]} 27...
Ra3 {[%clk 0:01:15.8]} 28. Rd1 {[%clk 0:00:02.3]} 28... Rxa2 {[%clk 0:00:56.2]}
29. Rd7 {[%clk 0:00:02.3]} 29... Bh4 {[%clk 0:00:49]} 30. Rc7 {[%clk 0:00:01.7]}
30... h6 {[%clk 0:00:46.2]} 31. Rc8+ {[%clk 0:00:01.5]} 31... Kh7 {[%clk
0:00:46.2]} 32. Rc7 {[%clk 0:00:01.5]} 32... Ra1 {[%clk 0:00:42.5]} 0-1

[Event "Late-Titled-Tuesday-Blitz-February-06-2024"]
[Site "Chess.com"]
[Date "2024.02.06"]
[Round "6"]
[White "mjelcic"]
[Black "Walter_White_Poland"]
[Result "0-1"]
[WhiteElo "2211"]
[BlackElo "2397"]
[TimeControl "180+1"]
[EndTime "15:06:04 PST"]
[Termination "Walter_White_Poland won by resignation"]

1. c4 {[%clk 0:03:00.9]} 1... e5 {[%clk 0:02:58.3]} 2. Nc3 {[%clk 0:03:00]} 2...
Nc6 {[%clk 0:02:57.8]} 3. g3 {[%clk 0:03:00.4]} 3... g6 {[%clk 0:02:57.3]} 4.
Bg2 {[%clk 0:02:59.2]} 4... Bg7 {[%clk 0:02:57.8]} 5. e4 {[%clk 0:02:59.2]} 5...
Nge7 {[%clk 0:02:56.4]} 6. Nge2 {[%clk 0:02:59.7]} 6... O-O {[%clk 0:02:55.9]}
7. O-O {[%clk 0:02:59.7]} 7... d6 {[%clk 0:02:55.9]} 8. d3 {[%clk 0:03:00]} 8...
f5 {[%clk 0:02:55.2]} 9. f4 {[%clk 0:02:59.7]} 9... a5 {[%clk 0:02:40.6]} 10.
Be3 {[%clk 0:02:56.8]} 10... Rb8 {[%clk 0:02:39.8]} 11. Qd2 {[%clk 0:02:53.6]}
11... Be6 {[%clk 0:02:36.9]} 12. Nd5 {[%clk 0:02:53]} 12... Nd4 {[%clk
0:02:28.7]} 13. fxe5 {[%clk 0:02:41.2]} 13... Nxe2+ {[%clk 0:02:25.2]} 14. Qxe2
{[%clk 0:02:40.3]} 14... dxe5 {[%clk 0:02:25.3]} 15. Bg5 {[%clk 0:02:31]} 15...
Bxd5 {[%clk 0:02:14.7]} 16. exd5 {[%clk 0:02:31.9]} 16... Qd6 {[%clk 0:02:07.2]}
17. Rac1 {[%clk 0:02:24.6]} 17... b6 {[%clk 0:02:06.5]} 18. b3 {[%clk
0:02:13.7]} 18... c5 {[%clk 0:01:52.3]} 19. dxc6 {[%clk 0:02:11.6]} 19... Nxc6
{[%clk 0:01:51.8]} 20. Bd5+ {[%clk 0:02:11.5]} 20... Kh8 {[%clk 0:01:51]} 21.
Bxc6 {[%clk 0:02:02.5]} 21... Qxc6 {[%clk 0:01:48.9]} 22. Rce1 {[%clk
0:02:00.5]} 22... Rbe8 {[%clk 0:01:46.7]} 23. Be3 {[%clk 0:01:54.5]} 23... f4
{[%clk 0:01:39.1]} 24. Bf2 {[%clk 0:01:48.3]} 24... e4 {[%clk 0:01:16.2]} 25.
dxe4 {[%clk 0:01:43.4]} 25... f3 {[%clk 0:01:12.9]} 26. Qc2 {[%clk 0:01:34.6]}
26... Qe6 {[%clk 0:01:04.1]} 27. Kh1 {[%clk 0:01:24.3]} 27... Qh3 {[%clk
0:01:00.7]} 28. Rg1 {[%clk 0:01:04.2]} 28... Be5 {[%clk 0:00:52.5]} 29. Bxb6
{[%clk 0:00:56.3]} 29... f2 {[%clk 0:00:48.6]} 30. Ref1 {[%clk 0:00:51.5]} 30...
fxg1=Q+ {[%clk 0:00:45.5]} 31. Rxg1 {[%clk 0:00:52.4]} 31... Rf1 {[%clk
0:00:43.4]} 32. Qe2 {[%clk 0:00:39.3]} 32... Ref8 {[%clk 0:00:36]} 33. c5 {[%clk
0:00:30.2]} 33... R8f2 {[%clk 0:00:25.3]} 34. Qxf2 {[%clk 0:00:11.1]} 34... Rxf2
{[%clk 0:00:24]} 0-1

[Event "Late-Titled-Tuesday-Blitz-February-06-2024"]
[Site "Chess.com"]
[Date "2024.02.06"]
[Round "6"]
[White "only_strong_moves"]
[Black "snowlord"]
[Result "0-1"]
[WhiteElo "2659"]
[BlackElo "2874"]
[TimeControl "180+1"]
[EndTime "15:06:07 PST"]
[Termination "snowlord won by resignation"]

1. e4 {[%clk 0:02:59.8]} 1... c5 {[%clk 0:03:00]} 2. Nf3 {[%clk 0:03:00.2]} 2...
e6 {[%clk 0:03:00.4]} 3. d4 {[%clk 0:03:00.4]} 3... cxd4 {[%clk 0:03:01.3]} 4.
Nxd4 {[%clk 0:03:01.3]} 4... Nc6 {[%clk 0:03:01.9]} 5. Nc3 {[%clk 0:03:00.5]}
5... Qc7 {[%clk 0:03:02.5]} 6. f4 {[%clk 0:03:01.1]} 6... Nxd4 {[%clk
0:03:01.1]} 7. Qxd4 {[%clk 0:03:01.1]} 7... a6 {[%clk 0:03:01.9]} 8. Be3 {[%clk
0:03:00.9]} 8... b5 {[%clk 0:03:01.4]} 9. a3 {[%clk 0:02:57.8]} 9... Bb7 {[%clk
0:02:58.6]} 10. Be2 {[%clk 0:02:51]} 10... Rc8 {[%clk 0:02:58.6]} 11. O-O-O
{[%clk 0:02:46.4]} 11... Nf6 {[%clk 0:02:44.4]} 12. Bf3 {[%clk 0:02:40.7]} 12...
Bxa3 {[%clk 0:02:16.7]} 13. Rd3 {[%clk 0:02:13.5]} 13... Be7 {[%clk 0:01:49.3]}
14. Rd2 {[%clk 0:02:00.4]} 14... Qa5 {[%clk 0:01:26.5]} 15. Nb1 {[%clk
0:01:36.2]} 15... O-O {[%clk 0:01:12.1]} 16. g4 {[%clk 0:01:31.6]} 16... Rc4
{[%clk 0:01:11.5]} 17. Qd3 {[%clk 0:01:29.6]} 17... Nxe4 {[%clk 0:01:06.3]} 18.
Rg2 {[%clk 0:00:38.9]} 18... Rfc8 {[%clk 0:00:52.5]} 19. f5 {[%clk 0:00:18.5]}
19... Bd5 {[%clk 0:00:45.5]} 20. fxe6 {[%clk 0:00:17.9]} 20... dxe6 {[%clk
0:00:45.3]} 21. Rf1 {[%clk 0:00:16.6]} 21... Qa1 {[%clk 0:00:32.9]} 22. c3
{[%clk 0:00:05]} 22... Nxc3 {[%clk 0:00:29]} 23. bxc3 {[%clk 0:00:04.2]} 23...
Rxc3+ {[%clk 0:00:29.6]} 24. Rc2 {[%clk 0:00:04.4]} 24... Rxc2+ {[%clk
0:00:27.5]} 25. Qxc2 {[%clk 0:00:05.3]} 25... Rxc2+ {[%clk 0:00:27.9]} 26. Kxc2
{[%clk 0:00:06.2]} 26... Qa2+ {[%clk 0:00:28.5]} 27. Kc1 {[%clk 0:00:06.3]}
27... Bxf3 {[%clk 0:00:29.1]} 28. Rxf3 {[%clk 0:00:06.2]} 28... Ba3+ {[%clk
0:00:29.5]} 29. Nxa3 {[%clk 0:00:05.9]} 29... Qxa3+ {[%clk 0:00:30.4]} 30. Kd2
{[%clk 0:00:06.8]} 30... Qb2+ {[%clk 0:00:30.5]} 31. Kd3 {[%clk 0:00:07]} 31...
Qb3+ {[%clk 0:00:30.1]} 32. Ke2 {[%clk 0:00:07.5]} 32... Qc4+ {[%clk 0:00:29.8]}
33. Kf2 {[%clk 0:00:07.7]} 33... Qc2+ {[%clk 0:00:30.3]} 34. Kg3 {[%clk
0:00:08.3]} 34... b4 {[%clk 0:00:31]} 35. Rf2 {[%clk 0:00:08.9]} 35... Qd3
{[%clk 0:00:30.6]} 36. Rd2 {[%clk 0:00:09.8]} 36... Qxe3+ {[%clk 0:00:30.8]} 0-1

[Event "Late-Titled-Tuesday-Blitz-February-06-2024"]
[Site "Chess.com"]
[Date "2024.02.06"]
[Round "6"]
[White "lachesisQ"]
[Black "YouShallNotPass001"]
[Result "1-0"]
[WhiteElo "3060"]
[BlackElo "2472"]
[TimeControl "180+1"]
[EndTime "15:06:13 PST"]
[Termination "lachesisQ won by resignation"]

1. e4 {[%clk 0:03:00.9]} 1... e5 {[%clk 0:02:51.3]} 2. f4 {[%clk 0:03:00.7]}
2... Bc5 {[%clk 0:02:50.3]} 3. Nf3 {[%clk 0:02:59.9]} 3... d6 {[%clk 0:02:50.6]}
4. c3 {[%clk 0:02:59.8]} 4... Bb6 {[%clk 0:02:50.3]} 5. d4 {[%clk 0:02:59.8]}
5... Nf6 {[%clk 0:02:49.4]} 6. fxe5 {[%clk 0:02:46.9]} 6... dxe5 {[%clk
0:02:50.3]} 7. Nxe5 {[%clk 0:02:44]} 7... O-O {[%clk 0:02:46.5]} 8. Bc4 {[%clk
0:02:30.9]} 8... Nc6 {[%clk 0:01:36.6]} 9. Nxc6 {[%clk 0:02:27.5]} 9... bxc6
{[%clk 0:01:37.5]} 10. Bg5 {[%clk 0:02:18.6]} 10... Qe8 {[%clk 0:01:31.1]} 11.
Bxf6 {[%clk 0:01:34.8]} 11... Qxe4+ {[%clk 0:01:30.6]} 12. Be2 {[%clk
0:01:34.2]} 12... gxf6 {[%clk 0:01:08.3]} 13. O-O {[%clk 0:01:33.9]} 13... Bf5
{[%clk 0:01:08.6]} 14. Nd2 {[%clk 0:01:32.3]} 14... Qe3+ {[%clk 0:01:08.2]} 15.
Kh1 {[%clk 0:01:32.4]} 15... Bg6 {[%clk 0:01:08.5]} 16. Bf3 {[%clk 0:01:30.3]}
16... Rae8 {[%clk 0:01:03.3]} 17. Bxc6 {[%clk 0:01:26.7]} 17... Re6 {[%clk
0:01:03.5]} 18. Bd5 {[%clk 0:01:26.2]} 18... Re7 {[%clk 0:00:54.4]} 19. Nc4
{[%clk 0:01:26.1]} 19... Qg5 {[%clk 0:00:52]} 20. Bf3 {[%clk 0:01:09.2]} 20...
Rfe8 {[%clk 0:00:49.6]} 21. b4 {[%clk 0:01:02.8]} 21... Qb5 {[%clk 0:00:44.8]}
22. Nxb6 {[%clk 0:00:53.9]} 22... axb6 {[%clk 0:00:44.2]} 23. Qd2 {[%clk
0:00:52.8]} 23... c5 {[%clk 0:00:40.5]} 24. dxc5 {[%clk 0:00:49.3]} 24... bxc5
{[%clk 0:00:41.4]} 25. a4 {[%clk 0:00:49.7]} 25... Qc4 {[%clk 0:00:39.9]} 26. b5
{[%clk 0:00:49]} 26... Re3 {[%clk 0:00:40]} 27. b6 {[%clk 0:00:46.8]} 27... Rxc3
{[%clk 0:00:35.2]} 28. b7 {[%clk 0:00:45.4]} 28... Rb3 {[%clk 0:00:31.6]} 29. a5
{[%clk 0:00:41.7]} 29... Rd3 {[%clk 0:00:23.1]} 30. Qf2 {[%clk 0:00:40.5]} 30...
Qa6 {[%clk 0:00:19.1]} 31. Rfb1 {[%clk 0:00:30.6]} 31... Rb8 {[%clk 0:00:17]}
32. Qg3 {[%clk 0:00:28.5]} 32... Qa7 {[%clk 0:00:16.2]} 33. a6 {[%clk
0:00:27.2]} 33... Rd4 {[%clk 0:00:11.4]} 34. Qxb8+ {[%clk 0:00:26.7]} 34... Qxb8
{[%clk 0:00:11]} 35. a7 {[%clk 0:00:27.6]} 35... Qd8 {[%clk 0:00:06.8]} 36. b8=Q
{[%clk 0:00:27.3]} 36... Bxb1 {[%clk 0:00:07.4]} 37. Qxd8+ {[%clk 0:00:26.6]}
37... Rxd8 {[%clk 0:00:08.3]} 38. Rxb1 {[%clk 0:00:27]} 1-0

[Event "Late-Titled-Tuesday-Blitz-February-06-2024"]
[Site "Chess.com"]
[Date "2024.02.06"]
[Round "6"]
[White "giomar27"]
[Black "jinbojinbo"]
[Result "1-0"]
[WhiteElo "2453"]
[BlackElo "2619"]
[TimeControl "180+1"]
[EndTime "15:06:16 PST"]
[Termination "giomar27 won by resignation"]

1. Nc3 {[%clk 0:03:00.9]} 1... d5 {[%clk 0:02:57.6]} 2. d4 {[%clk 0:03:00.7]}
2... Nf6 {[%clk 0:02:57]} 3. Bf4 {[%clk 0:03:00.9]} 3... g6 {[%clk 0:02:54.8]}
4. e3 {[%clk 0:03:00.6]} 4... Bg7 {[%clk 0:02:54.8]} 5. h4 {[%clk 0:02:58.7]}
5... h5 {[%clk 0:02:54.3]} 6. Be2 {[%clk 0:02:57.8]} 6... O-O {[%clk 0:02:53.7]}
7. Nf3 {[%clk 0:02:58.4]} 7... c5 {[%clk 0:02:53.2]} 8. dxc5 {[%clk 0:02:57]}
8... Nbd7 {[%clk 0:02:52.9]} 9. O-O {[%clk 0:02:42.2]} 9... Nxc5 {[%clk
0:02:52.4]} 10. Ne5 {[%clk 0:02:40.6]} 10... Bf5 {[%clk 0:02:46.5]} 11. Nb5
{[%clk 0:02:33.3]} 11... Ne6 {[%clk 0:02:37.7]} 12. Bg3 {[%clk 0:02:29.8]} 12...
a6 {[%clk 0:02:29.8]} 13. Nd4 {[%clk 0:02:29.5]} 13... Nxd4 {[%clk 0:02:29.9]}
14. exd4 {[%clk 0:02:29.8]} 14... Rc8 {[%clk 0:02:29.4]} 15. c3 {[%clk
0:02:29.8]} 15... Ne4 {[%clk 0:02:29.4]} 16. Bf4 {[%clk 0:02:25.8]} 16... e6
{[%clk 0:02:26.9]} 17. Nf3 {[%clk 0:02:18.8]} 17... b5 {[%clk 0:02:25.1]} 18. g3
{[%clk 0:02:17.5]} 18... Qb6 {[%clk 0:02:22.1]} 19. a3 {[%clk 0:02:13.9]} 19...
a5 {[%clk 0:02:21]} 20. Qb3 {[%clk 0:02:12.7]} 20... b4 {[%clk 0:02:11.3]} 21.
axb4 {[%clk 0:02:13]} 21... axb4 {[%clk 0:02:12.2]} 22. Ra4 {[%clk 0:02:13.3]}
22... Bg4 {[%clk 0:01:50]} 23. Rxb4 {[%clk 0:02:12.1]} 23... Qd8 {[%clk
0:01:49.7]} 24. Qd1 {[%clk 0:02:06.6]} 24... Nd6 {[%clk 0:01:39.8]} 25. Ne5
{[%clk 0:02:04.6]} 25... Bxe2 {[%clk 0:01:39.1]} 26. Qxe2 {[%clk 0:02:04.9]}
26... Nf5 {[%clk 0:01:39.7]} 27. Rb7 {[%clk 0:01:56.2]} 27... Bxe5 {[%clk
0:01:28.1]} 28. Bxe5 {[%clk 0:01:55.1]} 28... Ra8 {[%clk 0:01:27.5]} 29. Kg2
{[%clk 0:01:41.3]} 29... Ra2 {[%clk 0:01:23.5]} 30. Qd2 {[%clk 0:01:34.8]} 30...
Kh7 {[%clk 0:01:08.6]} 31. Qg5 {[%clk 0:01:19.3]} 31... Qxg5 {[%clk 0:01:07.4]}
32. hxg5 {[%clk 0:01:20.2]} 32... Kg8 {[%clk 0:01:05.6]} 33. Rh1 {[%clk
0:01:18.5]} 33... Ng7 {[%clk 0:00:56.1]} 34. f3 {[%clk 0:01:03.2]} 34... Rc8
{[%clk 0:00:53.8]} 35. Rb3 {[%clk 0:00:50.5]} 35... Ra7 {[%clk 0:00:17.1]} 36.
g4 {[%clk 0:00:50.1]} 36... hxg4 {[%clk 0:00:17]} 37. fxg4 {[%clk 0:00:50.5]}
37... Ra2 {[%clk 0:00:14.4]} 38. Kg3 {[%clk 0:00:50.6]} 38... Ra4 {[%clk
0:00:11.9]} 39. Rb7 {[%clk 0:00:49.4]} 39... Ra2 {[%clk 0:00:11.5]} 40. Rf1
{[%clk 0:00:49.3]} 40... Rf8 {[%clk 0:00:11.2]} 41. Bd6 {[%clk 0:00:48.2]} 41...
Rd8 {[%clk 0:00:10.3]} 42. Ba3 {[%clk 0:00:40.7]} 42... Rc8 {[%clk 0:00:06.3]}
43. Rfxf7 {[%clk 0:00:39.1]} 1-0

[Event "Late-Titled-Tuesday-Blitz-February-06-2024"]
[Site "Chess.com"]
[Date "2024.02.06"]
[Round "6"]
[White "giovannibrandao7"]
[Black "HajiyevKanan"]
[Result "0-1"]
[WhiteElo "2239"]
[BlackElo "2609"]
[TimeControl "180+1"]
[EndTime "15:06:19 PST"]
[Termination "HajiyevKanan won by resignation"]

1. e4 {[%clk 0:02:59.8]} 1... c6 {[%clk 0:02:51.9]} 2. d4 {[%clk 0:02:59.7]}
2... d5 {[%clk 0:02:52.8]} 3. Nc3 {[%clk 0:03:00.3]} 3... a6 {[%clk 0:02:53.4]}
4. exd5 {[%clk 0:02:59.4]} 4... cxd5 {[%clk 0:02:54.3]} 5. Nf3 {[%clk 0:03:00]}
5... Bg4 {[%clk 0:02:54.2]} 6. h3 {[%clk 0:02:59.7]} 6... Bh5 {[%clk 0:02:53.6]}
7. Be2 {[%clk 0:02:59.5]} 7... Nc6 {[%clk 0:02:53.2]} 8. O-O {[%clk 0:02:57.6]}
8... e6 {[%clk 0:02:53.3]} 9. Bf4 {[%clk 0:02:51.6]} 9... Bd6 {[%clk 0:02:52.6]}
10. Ne5 {[%clk 0:02:48.1]} 10... Bxe2 {[%clk 0:02:50.9]} 11. Nxe2 {[%clk
0:02:47]} 11... Qc7 {[%clk 0:02:49.7]} 12. Re1 {[%clk 0:02:31]} 12... Nxe5
{[%clk 0:02:40.9]} 13. dxe5 {[%clk 0:02:29.6]} 13... Bxe5 {[%clk 0:02:41.8]} 14.
Bxe5 {[%clk 0:02:28.3]} 14... Qxe5 {[%clk 0:02:42.7]} 15. Nc3 {[%clk 0:02:28.2]}
15... Qd6 {[%clk 0:02:39.9]} 16. Qxd5 {[%clk 0:02:26]} 16... Qxd5 {[%clk
0:02:36.8]} 17. Nxd5 {[%clk 0:02:26.9]} 17... O-O-O {[%clk 0:02:30.7]} 18. Ne3
{[%clk 0:02:09.8]} 18... Nf6 {[%clk 0:02:26.1]} 19. Rad1 {[%clk 0:02:05.6]}
19... h5 {[%clk 0:02:24.7]} 20. Kf1 {[%clk 0:02:03.3]} 20... Kc7 {[%clk
0:02:23.8]} 21. c3 {[%clk 0:01:58.2]} 21... b5 {[%clk 0:02:23.3]} 22. Ke2 {[%clk
0:01:58.1]} 22... Ne4 {[%clk 0:02:20.7]} 23. f3 {[%clk 0:01:39.6]} 23... Nc5
{[%clk 0:02:17.3]} 24. b3 {[%clk 0:01:39.1]} 24... Nd7 {[%clk 0:02:14.9]} 25. c4
{[%clk 0:01:27.9]} 25... b4 {[%clk 0:02:04.9]} 26. Nc2 {[%clk 0:01:27.9]} 26...
a5 {[%clk 0:02:03.4]} 27. Nd4 {[%clk 0:01:19.2]} 27... Nc5 {[%clk 0:01:59.5]}
28. Nb5+ {[%clk 0:01:17.3]} 28... Kc6 {[%clk 0:01:58.9]} 29. Ke3 {[%clk
0:01:08.7]} 29... e5 {[%clk 0:01:50.9]} 30. g4 {[%clk 0:00:46.2]} 30... hxg4
{[%clk 0:01:35.5]} 31. hxg4 {[%clk 0:00:46.9]} 31... Rxd1 {[%clk 0:01:33.4]} 32.
Rxd1 {[%clk 0:00:46.8]} 32... Rh2 {[%clk 0:01:34.3]} 33. Rd6+ {[%clk 0:00:33.8]}
33... Kb7 {[%clk 0:01:34.3]} 34. Rd5 {[%clk 0:00:34.2]} 34... Kb6 {[%clk
0:01:23.6]} 35. Rd6+ {[%clk 0:00:33.6]} 35... Kb7 {[%clk 0:01:23.1]} 36. Rd5
{[%clk 0:00:34]} 36... Ne6 {[%clk 0:01:19.7]} 37. Rd7+ {[%clk 0:00:26.1]} 37...
Kc6 {[%clk 0:01:14.3]} 38. Rxf7 {[%clk 0:00:26.4]} 38... Rxa2 {[%clk 0:01:14.6]}
39. Re7 {[%clk 0:00:26.5]} 39... Nc5 {[%clk 0:01:12]} 40. Rxg7 {[%clk
0:00:18.9]} 40... Nxb3 {[%clk 0:01:12.3]} 41. Rc7+ {[%clk 0:00:17.6]} 41... Kb6
{[%clk 0:01:12.7]} 42. Re7 {[%clk 0:00:16.6]} 42... Rc2 {[%clk 0:01:00.9]} 43.
Rxe5 {[%clk 0:00:13.5]} 43... Rxc4 {[%clk 0:01:00.9]} 44. Nd6 {[%clk 0:00:13.5]}
44... Rc3+ {[%clk 0:01:00.1]} 45. Kf4 {[%clk 0:00:11.3]} 45... Nc5 {[%clk
0:00:58.2]} 46. Re2 {[%clk 0:00:04.8]} 46... b3 {[%clk 0:00:56.1]} 47. g5 {[%clk
0:00:04.7]} 47... Rc2 {[%clk 0:00:53.7]} 48. Re1 {[%clk 0:00:03.2]} 48... Nd3+
{[%clk 0:00:51.8]} 49. Kf5 {[%clk 0:00:02.8]} 49... Nxe1 {[%clk 0:00:52]} 0-1